Cogmind - Beta 14 @@@ ROGUE MODE // 2025.03.14 @ 23:32:58 Player: Anting Result: Destroyed by G-47 Trooper with Particle Gun Performance ------------- Evolutions (0) 0 Regions Visited (2) 400 Robots Destroyed (28) 140 Value Destroyed (651) 651 Prototype IDs (0) 0 Alien Tech Used (0) 0 Bonus (0) 0 TOTAL SCORE: 1191 Bonus ------- None Cogmind --------- Core Integrity 0/250 Matter 267/300 Energy 250/250 System Corruption 6% Temperature Cool (9) Movement Treading (320) Ox2 Location -10/Mines Parts ------- > --- POWER (1) -------- Ion Engine > --- PROPULSION (2) --- Light Treads Light Treads > --- UTILITY (2) ------ Improved Heat Sink (fused) Huge Storage Unit > --- WEAPON (2) ------- Assault Rifle Light Assault Rifle > --- INVENTORY (25) --- Light Treads Light Treads Light Treads Light Treads Small Storage Unit High-capacity Matter Pod (136) High-capacity Matter Pod (0) Machine Analyzer Signal Interpreter Grenade Launcher Peak State ------------ > --- POWER ------------ Ion Engine > --- PROPULSION ------- Aluminum Leg Aluminum Leg > --- UTILITY ---------- Improved Heat Sink Small Storage Unit > --- WEAPON ----------- Assault Rifle Assault Rifle > --- INVENTORY -------- Light Treads Light Treads Light Treads Huge Storage Unit Machine Analyzer Seismic Detector Light Assault Rifle Grenade Launcher [Rating: 10] Favorites ----------- Power Ion Engine Engine Ion Engine Propulsion Light Treads Treads Light Treads Leg Aluminum Leg Utility Improved Heat Sink Device Improved Heat Sink Storage Huge Storage Unit Weapon Assault Rifle Ballistic Gun Assault Rifle Launcher Grenade Launcher Build | -11 -10 -10 ------- Run | Yrd Mat Min Slots Evolved . | . . . Power . | . . . Propulsion . | . . . Utility . | . . . Weapon . | . . . Parts Attached 21 | 7 6 8 Power 2 | 1 . 1 Engine 2 | 1 . 1 Core . | . . . Reactor . | . . . Propulsion 4 | 2 2 . Treads 2 | . 2 . Leg 2 | 2 . . Wheel . | . . . Hover . | . . . Flight . | . . . Utility 5 | 2 3 . Device 3 | 1 2 . Storage 2 | 1 1 . Processor . | . . . Hackware . | . . . Protection . | . . . Artifact . | . . . Weapon 10 | 2 1 7 Energy Gun . | . . . Energy Cannon . | . . . Ballistic Gun 9 | 2 1 6 Ballistic Cannon . | . . . Launcher 1 | . . 1 Special Weapon . | . . . Impact Weapon . | . . . Slashing Weapon . | . . . Piercing Weapon . | . . . Special Melee Weapon . | . . . Unidentified Prototypes . | . . . Parts Lost 1 | . . 1 Power . | . . . Propulsion . | . . . Utility . | . . . Weapon 1 | . . 1 Highest Loss Streak 1 | . . 1 To Critical Strikes . | . . . Average Slot Usage (%) 100 | . 100 100 Engine 14 | . 14 14 Treads 21 | . 18 28 Leg 6 | . 10 . Device 14 | . 14 14 Storage 14 | . 14 14 Ballistic Gun 27 | . 28 27 Peak Build Rating 10 | 7 10 10 Average Rating 9 | 5 9 9 On Entrance 5 | . 7 10 Naked Turns . | . . . Heaviest Build 90 | 15 90 90 Greatest Support 40 | 20 40 40 Greatest Overweight (x) 2 | 2 2 2 Average Overweight (x) . | . . 2 Largest Inventory Capacity 25 | 8 25 25 Average Capacity 18 | 7 14 25 Most Carried 11 | 5 11 11 Average Carried 9 | 3 8 10 Final Capacity 25 | 8 25 25 Final Carried 11 | 5 11 10 Class Distribution -------------------- 100% | Mutant Dominant Class ---------------- Mutant | -10/Materials Mutant | -10/Mines Resources | -11 -10 -10 ----------- Run | Yrd Mat Min Matter Collected 1133 | 282 561 290 Remotely . | . . . Salvage Created 918 | 69 574 275 Parts 67 | 8 42 17 Haulers Intercepted 2 | . 2 . Recyclers Shooed 1 | . . 1 Parts Field Recycled . | . . . Retrieved Matter . | . . . Parts Self-Destructed . | . . . Prevented . | . . . Kills | -11 -10 -10 ------- Run | Yrd Mat Min Combat Hostiles Destroyed 19 | . 10 9 Guns 15 | . 10 5 AOE 4 | . . 4 Classes Destroyed 8 | 1 7 . Worker 1 | . 1 . Builder 1 | . 1 . Tunneler 3 | 3 . . Hauler 2 | . 2 . Mechanic 1 | . 1 . Watcher 1 | . 1 . Swarmer 5 | . 2 3 Grunt 14 | . 8 6 Best Kill Streak 6 | 2 4 6 Combat Bots Only 6 | . 1 6 Max Kills in Single Turn 1 | 1 1 1 Gunslinging . | . . . Exploded 1 | . . 1 Melee . | . . . Uniques/NPCs Destroyed . | . . . Combat | -11 -10 -10 -------- Run | Yrd Mat Min Hostile Shots Fired 111 | . 65 46 Missed 27 | . 18 9 Damage Taken 965 | . 477 488 Core 250 | . 137 113 Absorbed by Shields . | . . . Core Remaining (%) 100 | 100 . . Volleys Fired 104 | 8 66 30 Largest 2 | 2 2 2 Hottest 40 | 40 40 40 Shots Fired 201 | 16 131 54 Gun 197 | 16 131 50 Cannon . | . . . Launcher 4 | . . 4 Special . | . . . Kinetic 197 | 16 131 50 Thermal . | . . . Explosive 4 | . . 4 Electromagnetic . | . . . Robot Hit Streak 24 | 3 13 24 Robot Miss Streak 4 | 4 4 1 Penetration Max . | . . . Secondary Targets 2 | . 2 . Max Gunslinging Chain 1 | . 1 . Shots Hit Robots 142 | 7 88 47 Core Hits 52 | 3 30 19 Critical Kills . | . . . Critical Parts Destroyed 2 | . 1 1 Critical Strikes 2 | . 1 1 Destroy 2 | . 1 1 Melee Attacks . | . . . Impact . | . . . Slashing . | . . . Piercing . | . . . Sneak Attacks . | . . . Combat Hostiles . | . . . Follow-up Attacks . | . . . Damage Inflicted 1916 | 89 1096 731 Guns 1611 | 89 1088 434 Cannons . | . . . Explosions 297 | . . 297 Melee . | . . . Ramming 8 | . 8 . Kinetic 1611 | 89 1088 434 Thermal . | . . . Explosive 297 | . . 297 Electromagnetic . | . . . Impact . | . . . Slashing . | . . . Piercing . | . . . Highest Corruption 6 | . 6 6 Average Corruption 5 | . 5 6 Corruption Purged . | . . . Corruption Blocked . | . . . Effects 32 | . 12 20 Message Errors 3 | . 3 . Matter Fused 7 | . 2 5 Heat Flow Errors 8 | . 3 5 Energy Discharges 1 | . 1 . Parts Rejected 2 | . . 2 Parts Fused 1 | . . 1 Data Loss (minor) 5 | . 2 3 Data Loss (major) 1 | . . 1 Misfires 1 | . . 1 Weapon Failures 3 | . 1 2 Overload Shots . | . . . Overflow Damage . | . . . Projectiles . | . . . Explosions . | . . . Melee . | . . . Knockbacks . | . . . Impact . | . . . Kinetic . | . . . Secondary . | . . . Self-Inflicted Damage . | . . . Shots . | . . . Rammed 1 | . 1 . Targets Rammed 2 | . 2 . Kicked 1 | . 1 . Crushed . | . . . Highest Temperature 258 | . 257 258 Average Temperature 108 | . 109 107 Received Heat Transfer 495 | . 222 273 Siege Activations . | . . . Robots Corrupted . | . . . Combat Hostiles . | . . . Parts Fried . | . . . Impact Corruptions . | . . . Robots Melted . | . . . Combat Hostiles . | . . . Parts Melted . | . . . Heat Transferred . | . . . Parts Sabotaged . | . . . Parts Stolen . | . . . Parts Stripped . | . . . Power Chain Reactions . | . . . Alert | -11 -10 -10 ------- Run | Yrd Mat Min Peak Influence 276 | 15 276 241 Initial 66 | . 9 66 Average 107 | 4 109 117 Maximum Alert Level 1 | . 1 1 Low Security (%) 83 | 100 88 72 Level 1 16 | . 11 27 Level 2 . | . . . Level 3 . | . . . Level 4 . | . . . Level 5 . | . . . High Security . | . . . Max Security . | . . . Squads Dispatched 4 | . 4 . Investigation 3 | . 3 . Extermination . | . . . Reinforcement 1 | . 1 . Assault . | . . . Garrison . | . . . Intercept . | . . . Searches Triggered . | . . . Construction Impeded . | . . . Haulers Reinforced . | . . . Active Scanning Responses . | . . . Cargo Convoy Interrupts . | . . . Stealth | -11 -10 -10 --------- Run | Yrd Mat Min Distress Signals 4 | . 3 1 Communications Jammed . | . . . Distress Signals . | . . . Times Spotted 40 | . 27 13 Peak Tracking Total 7 | . 7 4 Tactical Retreats 8 | . 6 2 Traps | -11 -10 -10 ------- Run | Yrd Mat Min Traps Triggered 5 | . 5 . Indirectly . | . . . Trap Hack Attempts . | . . . Triggered . | . . . Disarmed . | . . . Reprogrammed . | . . . Reused . | . . . Traps Extracted . | . . . Installed . | . . . Triggered . | . . . Machines | -11 -10 -10 ---------- Run | Yrd Mat Min Machines Disabled . | . . . Max in Single Turn . | . . . Machines Repaired . | . . . Machines Dismantled . | . . . Machines Sabotaged . | . . . Overloaded Fab Kills . | . . . Hacking | -11 -10 -10 --------- Run | Yrd Mat Min Machines Accessed 5 | . 5 . Terminals 3 | . 3 . Fabricators . | . . . Repair Stations . | . . . Recycling Units 2 | . 2 . Scanalyzers . | . . . Garrison Access . | . . . Total Hacks 10 | . 10 . Successful 6 | . 6 . Failed 4 | . 4 . Catastrophic 1 | . 1 . Database Lockouts . | . . . Manual 10 | . 10 . Terminals 7 | . 7 . Fabricators . | . . . Repair Stations . | . . . Recycling Units 3 | . 3 . Scanalyzers . | . . . Garrison Access . | . . . Terminal Hacks 2 | . 2 . Part Schematic 1 | . 1 . Robot Analysis 1 | . 1 . Fabricator Hacks . | . . . Repair Station Hacks . | . . . Recycling Unit Hacks . | . . . Scanalyzer . | . . . Garrison Access Hacks . | . . . Unauthorized Hacks 4 | . 4 . Terminals 2 | . 2 . Botnet 2 | . 2 . Fabricators . | . . . Repair Stations . | . . . Recycling Units 2 | . 2 . Tunnel 2 | . 2 . Scanalyzers . | . . . Garrison Access . | . . . Data Cores Recovered . | . . . Used . | . . . Hacking Detections 3 | . 3 . Full Trace Events . | . . . Feedback Events . | . . . Feedback Blocked . | . . . Robot Schematics Acquired . | . . . Robots Built . | . . . Authchips . | . . . Time . | . . . Total Robot Build Rating . | . . . Part Schematics Acquired 1 | . 1 . Parts Built . | . . . Authchips . | . . . Time . | . . . Total Part Build Rating . | . . . Parts Repaired . | . . . Time . | . . . Parts Recycled . | . . . Recycled Matter . | . . . Retrieved Matter . | . . . Retrieved Components . | . . . Parts Scanalyzed . | . . . Part Schematics Acquired . | . . . Parts Damaged . | . . . Bothacking | -11 -10 -10 ------------ Run | Yrd Mat Min Used RIF Installer . | . . . Robots Hacked . | . . . Non-combat . | . . . Combat . | . . . Robot Hacks Applied . | . . . Relay Couplers Released . | . . . Fabnet Peak Effective % . | . . . Robots Rewired . | . . . Allies Hacked . | . . . Hacks Repelled . | . . . Allies | -11 -10 -10 -------- Run | Yrd Mat Min Total Allies . | . . . Largest Group . | . . . Highest-Rated Group . | . . . Highest-Rated Ally . | . . . Total Orders . | . . . Ally Attacks . | . . . Total Damage . | . . . Kills . | . . . Allies Corrupted . | . . . Allies Melted . | . . . Intel | -11 -10 -10 ------- Run | Yrd Mat Min Robot Analysis Total 1 | . 1 . Derelict Logs Recovered 1 | . . 1 Drone Launches . | . . . Drone Recoveries . | . . . Exploration | -11 -10 -10 ------------- Run | Yrd Mat Min Turns Passed 1956 | 95 1116 745 Spaces Moved 694 | 51 442 201 Core 10 | 10 . . Treads 490 | . 289 201 Legs 194 | 41 153 . Wheels . | . . . Hover . | . . . Flight . | . . . Fastest Speed 50 | 50 120 320 Average Speed 221 | 110 189 320 Slowest Speed 320 | 190 320 320 Overloaded Moves . | . . . Propulsion Burnouts . | . . . Robots Hopped . | . . . Cave-ins Triggered . | . . . Exploration Rate (%) 40 | 4 61 57 Regions Visited 2 Branch Regions 1 Pre-discovered Areas 2 | . 2 . Known Exits Taken . | . . . Unknown Exits Taken 2 | 1 1 . Scrap Searched 1 | . . 1 Spaces Dug . | . . . Terrain Destroyed 28 | . . 28 Melee . | . . . Projectile . | . . . AOE 28 | . . 28 Terrain Rammed . | . . . Walls Destroyed . | . . . Machines Disabled . | . . . Actions | -11 -10 -10 --------- Run | Yrd Mat Min Total 911 | 70 591 250 Wait 68 | . 57 11 Move 692 | 50 441 201 Hop . | . . . Pick Up 17 | 5 12 . Fast Attach 9 | 7 . 2 Attach 3 | . 2 1 Detach . | . . . Swap 9 | . 4 5 Drop 7 | . 7 . Fire 104 | 8 66 30 Melee . | . . . Ram . | . . . Kick 1 | . 1 . Crush 1 | . 1 . Escape Stasis . | . . . Rewire . | . . . Trap . | . . . Miscellaneous . | . . . Route ------- -11/Scrapyard -10/Materials (discovered 3 exits: [*Mat x2] / [*Min]) -10/Mines (discovered 2 exits: [*Mat x2]) History --------- Turn | Location | Event 8 | -11/Scrapyard | Discovered new exit (range 15) 96 | -11/Scrapyard | Entered Materials 264 | -10/Materials | Discovered new exit (range 5) 316 | -10/Materials | Build established: Mutant 528 | -10/Materials | Discovered new exit (range 7) 728 | -10/Materials | Discovered new exit (range 14) 1154 | -10/Materials | Core integrity fell below 50% 1212 | -10/Materials | Entered Mines 1461 | -10/Mines | Discovered new exit (range 10) 1759 | -10/Mines | Learned Materials terminal intel 1832 | -10/Mines | Discovered new exit (range 10) 1851 | -10/Mines | Core integrity fell below 20% 1957 | -10/Mines | Destroyed by G-47 Trooper with Particle Gun Last Messages --------------- Data stored: Materials terminal intel. 01767_ T-07 Excavator is excavating. 01791_ Assault Rifle destroyed. 01797_ System corrupted: Assault Rifle rejected. 01799_ Acquired Assault Rifle. 01800_ G-47 Trooper destroyed. 01806_ Acquired 52 matter. 01832_ EXIT=FOUND 01839_ K-01 Serf collects debris. 01851_ System corrupted: Assault Rifle jammed. 01854_ G-34 Mercenary suffers critical hit (Destroy). 01854_ Destroyed Sml. Laser. 01855_ System corrupted: Heat flow error (+259). 01856_ Critical hit (Burn: +37). 01862_ G-47 Trooper destroyed. 01870_ Acquired 44 matter. 01894_ System corrupted: Component data lost. 01916_ System corrupted: Matter fused (-5). 01955_ G-34 Mercenary destroyed. Map ----- +----------------------------------------------------+ | | | | | | | | | | | | | | | | | ???????????????????????????????????????????????? | | ???????????????????????????????????????????????? | | ???????????????????????????????????????????????? | | ???????????????????????????????????????????????? | | ???????????###########???? ????????????????????? | | ??????????? ???? ????????????????????? | | ??????????? #??? ????????????????????? | | ????????????? #??? ????????????????????? | | ?????????????""" #??? ????????????????????? | | ???????????? """ < #??? ????????????????????? | | ??????????"" """ #??? ????????????????????? | | ?????????? #??# #???????????????????? | | ??????????????"" """ #??# ???????????????????? | | ??????????????"" """ #??# #???????????????????? | | ??????????"" """ """ #### #???????????????????? | | ???????# [*## #???????????????????? | | ???????# # ## #???????????????????? | | ?????????##############@## #???????????????????? | | ??????????????????????#*## #???????????????????? | | ??????????????????????#g## #???????????????????? | | ??????????????????????#! #???????????????????? | | ??????????????????????# ####???????????????????? | | ??????????????????????# #??????????????????????? | | ??????????????????????#*#??????????????????????? | | ?????????????????###### #??????????????????????? | | ??????????######## =#??????????????????????? | | ??????????# ######??????????????????????? | | ??????????# #???????????????????????????? | | ??????????######## #???????????????????????????? | | ???????????????### #???????????????????????????? | | ???????????????# #???????????????????????????? | | ?????????????### ###???????????????????????????? | | ?????????????# #?????????????????????????????? | | ????????????## ###???????????????????????????? | | ????????????# ###?????????????????????????? | | ????????????# #??????????????????? | | ????????????# ## #??????????????????? | | ????????????# #?# #### #??????????????????? | | ????????????# #?? #??????#??????????????? ??? | | ????????????# #?? #?????????????????? ??? #?? | | ????????????# #?? #?????????????????? ??? ### | | ????????????# ##?? ##????????????????? ? | +----------------------------------------------------+ Best States ------------- Heat Dissipation 39 Energy Generation 10 Energy Capacity 250 Matter Stores 300 Matter Capacity 300 Sight Range 16 Terrain Scan Density 10 Evasion (%) 55 Recoil Reduction 2 Item Schematics ----------------- Huge Storage Unit | -10/Materials | Hacked Robot Schematics ------------------ None Fabricated ------------ Nothing Alien Tech Used ----------------- None Achievements -------------- None Challenges ------------ None Game ------ Seed EnhancedCoilFilter Manual? 0 Play Time 00:12:03 Cumulative 122.3 hours Start 2025.03.14 @ 23:22:32 End 2025.03.14 @ 23:32:58 Sessions 1 Manual Loads 0 Difficulty Rogue Special Mode None Game No. 91 Rogue 91 Adventurer 0 Explorer 0 Win Type - Total 6 Types 5/0/1/0/0/0/0/0/0 Lore% 64 Gallery% 61 Achievement% 57 Wizard Run 0 Options --------- Layout 1 ASCII 0 Keyboard 0 Movement Mouse Keybinds 0 Fullscreen 2 Font 24/Smallcaps Map View 50x35 Zoom Use 0% Tactical HUD 1 Map Filters NONE Filters NONE Steam 1 RUN: d185df24-612d-4040-80be-b095b32c583f